bitfinex/quotes_SOLUSD_20241205
["timestamp","ask_amount","ask_price","bid_price","bid_amount"]
[1733364160720,1.06963449,226.63,226.57,1.6299]
[1733364161129,1.06965375,226.65,226.57,1.6299]
[1733364161440,23.75119258,226.65,226.57,1.6299]
[1733364161614,1.06965375,226.65,226.57,1.6299]
[1733364162332,1.06963298,226.64,226.57,1.6299]
[1733364163050,22.68153883,226.63,226.57,1.6299]
[1733364163220,1.06973402,226.62,226.57,1.6299]
[1733364164138,1.06971243,226.64,226.57,1.6299]
[1733364164821,23.75125126,226.64,226.57,1.6299]
[1733364166250,1.06971243,226.64,226.57,1.6299]
[1733364166429,1.06956528,226.63,226.57,1.6299]
[1733364166826,22.68153883,226.62,226.57,1.6299]
[1733364167026,1.06978293,226.61,226.57,1.6299]
[1733364168030,23.75132176,226.61,226.57,1.6299]
[1733364169757,22.68153883,226.59,226.55,6.2519]
[1733364169921,22.68153883,226.56,226.51,1.5741]
[1733364170119,23.75172792,226.55,226.51,1.5741]
[1733364170355,1.07018909,226.55,226.51,1.5741]
[1733364170522,1.0699811,226.58,226.51,1.5741]
[1733364171167,1.06980743,226.61,226.51,1.5741]
[1733364171951,22.68153883,226.6,226.51,1.5741]
[1733364172127,23.75147242,226.59,226.51,1.5741]
[1733364173038,1.06993359,226.59,226.51,1.5741]
[1733364173638,1.06975929,226.62,226.51,1.5741]
[1733364173954,23.75129812,226.62,226.51,1.5741]
[1733364174153,1.06975929,226.62,226.51,1.5741]
[1733364174333,1.06975929,226.62,226.52,20.0]
[1733364174525,1.06963823,226.64,226.52,20.0]
[1733364174725,22.68153883,226.66,226.52,20.0]
[1733364174966,1.06965556,226.65,226.52,20.0]
[1733364175136,22.68153883,226.63,226.52,20.0]
[1733364175338,23.75132611,226.62,226.52,20.0]
[1733364175733,22.68153883,226.61,226.51,1.5741]
[1733364176055,23.75139137,226.6,226.51,1.5741]
[1733364176836,1.06985254,226.6,226.51,1.5741]
[1733364177034,20.0,226.64,226.51,1.5741]
[1733364177340,1.06970916,226.63,226.51,1.5741]
[1733364178455,1.06964516,226.62,226.51,1.5741]
[1733364178644,1.06964286,226.64,226.51,1.5741]
[1733364178822,22.68153883,226.63,226.51,1.5741]
[1733364179024,1.06964286,226.64,226.51,1.5741]
[1733364179025,1.06971388,226.62,226.51,1.5741]
[1733364180034,1.06966014,226.61,226.51,1.5741]
[1733364180235,1.06966477,226.63,226.51,1.5741]
[1733364180538,23.7512036,226.63,226.51,1.5741]
[1733364180740,22.68153883,226.6,226.51,1.5741]
[1733364180955,1.06986846,226.59,226.51,1.5741]
[1733364181926,1.06985441,226.58,226.51,1.5741]
[1733364182148,22.68153883,226.61,226.51,1.5741]
[1733364182149,23.7513875,226.6,226.51,1.5741]
[1733364182540,1.06984867,226.6,226.51,1.5741]
[1733364182854,22.68153883,226.59,226.51,1.5741]
[1733364183057,1.06996178,226.58,226.51,1.5741]
[1733364183563,22.68153883,226.52,226.51,1.5741]
[1733364183867,22.68153883,226.52,226.46,1.5283]
[1733364184163,1.07035236,226.51,226.46,1.5283]
[1733364185030,1.07021834,226.5,226.46,1.5283]
[1733364185239,1.07019812,226.52,226.46,1.5283]
[1733364186078,22.68153883,226.51,226.46,1.5283]
[1733364186374,22.68153883,226.47,226.44,6.4199]
[1733364186662,1.07046123,226.46,226.44,6.4199]
[1733364187670,23.75210046,226.45,226.38,6.4701]
[1733364187966,22.68153883,226.42,226.36,1.6521]
[1733364188267,1.07083682,226.41,226.36,1.6521]
[1733364188480,22.68153883,226.39,226.33,6.4701]
[1733364188640,22.68153883,226.36,226.3,1.6521]
[1733364188842,22.68153883,226.34,226.3,1.6521]
[1733364189068,1.07116688,226.33,226.3,1.6521]
[1733364189449,23.75270571,226.33,226.3,1.6521]
[1733364189651,1.07116688,226.33,226.27,6.4701]
[1733364190439,20.0,226.31,226.27,6.4701]
[1733364190760,1.0713345,226.3,226.27,6.4701]
[1733364191443,20.0,226.36,226.27,6.4701]
[1733364191639,1.07106402,226.35,226.27,6.4701]
[1733364191838,1.07081484,226.42,226.27,6.4701]
[1733364192240,22.68153883,226.41,226.27,6.4701]
[1733364192540,1.07090691,226.4,226.27,6.4701]
[1733364193163,22.68153883,226.39,226.27,6.4701]
[1733364193470,22.68153883,226.37,226.27,6.4701]
[1733364193670,1.07110802,226.36,226.27,6.4701]
[1733364193970,23.75264685,226.36,226.27,6.4701]
[1733364195142,1.07110802,226.36,226.27,6.4701]
[1733364195365,1.07104671,226.35,226.27,6.4701]
[1733364195569,22.68153883,226.34,226.27,6.4701]
[1733364195776,23.75279397,226.33,226.27,6.4701]
[1733364195948,1.07125514,226.33,226.27,6.4701]
[1733364196344,1.0711699,226.36,226.27,6.4701]
[1733364197656,21.0711699,226.36,226.27,6.4701]
[1733364197875,1.0711699,226.36,226.27,6.4701]
[1733364198064,22.68153883,226.35,226.27,6.4701]
[1733364198277,22.68153883,226.33,226.27,6.4701]
[1733364198576,1.07124654,226.32,226.27,6.4701]
[1733364199442,1.0712632,226.31,226.27,6.4701]
[1733364199646,23.75280203,226.31,226.24,1.6521]
[1733364199848,1.0712632,226.31,226.24,1.6521]
[1733364200375,1.07114955,226.34,226.24,1.6521]
[1733364200568,1.07097018,226.37,226.24,1.6521]
[1733364200868,1.07097018,226.37,226.25,20.0]
[1733364201049,22.68153883,226.36,226.24,1.6521]
[1733364201244,1.07119359,226.35,226.24,1.6521]
[1733364202178,23.75257072,226.38,226.24,1.6521]
[1733364202473,1.07103189,226.38,226.24,1.6521]
[1733364202669,1.07103189,226.38,226.25,20.0]
[1733364202975,22.68153883,226.33,226.24,1.6521]
[1733364203180,1.07130492,226.32,226.24,1.6521]
[1733364203381,1.07112485,226.34,226.24,1.6521]
[1733364204258,1.07107803,226.36,226.24,1.6521]
[1733364204881,22.68153883,226.34,226.24,1.6521]
[1733364205070,23.7527744,226.33,226.24,1.6521]
[1733364205271,1.07123557,226.33,226.24,1.6521]
[1733364205961,1.07121789,226.32,226.24,1.6521]
[1733364206169,1.07115482,226.34,226.24,1.6521]
[1733364206784,22.68153883,226.37,226.24,1.6521]
[1733364206973,1.07114466,226.36,226.24,1.6521]
[1733364207358,1.07092516,226.4,226.25,20.0]
[1733364207887,1.07092516,226.4,226.29,20.0]
[1733364208265,1.07077964,226.43,226.29,20.0]
[1733364208464,23.75231847,226.43,226.29,20.0]
[1733364210291,22.68153883,226.39,226.26,6.3821]
[1733364210492,23.7524922,226.38,226.26,6.3821]
[1733364210693,1.07095337,226.38,226.26,6.3821]
[1733364212191,1.07082678,226.4,226.29,20.0]
[1733364212582,22.68153883,226.39,226.26,6.3821]
[1733364212896,1.07090696,226.38,226.26,6.3821]
[1733364213306,23.75244579,226.38,226.26,6.3821]
[1733364213468,1.07090696,226.38,226.26,6.3821]
[1733364214190,1.07090696,226.38,226.29,20.0]
[1733364214371,1.07082989,226.42,226.29,20.0]
[1733364214900,23.75236872,226.42,226.29,20.0]
[1733364216003,15.23670663,226.42,226.29,20.0]
[1733364216374,34.16587674,226.39,226.26,6.3821]
[1733364216695,14.16587674,226.37,226.26,6.3821]
[1733364216905,1.07102635,226.36,226.26,6.3821]
[1733364217693,1.07087312,226.4,226.29,20.0]
[1733364217898,15.23674986,226.4,226.29,20.0]
[1733364218209,1.07087312,226.4,226.29,20.0]
[1733364218403,14.16587674,226.38,226.26,6.3821]
[1733364218599,1.07103369,226.37,226.26,6.3821]
[1733364219487,1.07100922,226.36,226.26,6.3821]
[1733364219911,14.16587674,226.37,226.26,6.3821]
[1733364220089,1.07108982,226.36,226.26,6.3821]
[1733364221986,1.07110609,226.35,226.26,6.3821]
[1733364222886,1.07105196,226.38,226.26,6.3821]
[1733364224703,1.07095318,226.37,226.26,6.3821]
[1733364224910,1.07092888,226.4,226.26,6.3821]
[1733364225417,1.07092888,226.4,226.29,20.0]
[1733364225608,1.07069569,226.44,226.3,1.6612]
[1733364226710,14.16587674,226.43,226.3,1.6612]
[1733364227015,1.07086493,226.42,226.3,1.6612]
[1733364229094,1.07077549,226.45,226.3,1.6612]
[1733364229517,1.07077549,226.45,226.29,20.0]
[1733364229518,1.07077549,226.45,226.34,20.0]
[1733364229729,14.16587674,226.53,226.34,20.0]
[1733364229927,1.07045757,226.52,226.34,20.0]
[1733364230230,14.16587674,226.47,226.35,7.9889]
[1733364230517,1.07063694,226.46,226.35,7.9889]
[1733364231022,1.07053245,226.49,226.38,20.0]
[1733364234126,1.07053245,226.49,226.36,1.97966177]
[1733364234427,1.07053245,226.49,226.35,20.0]
[1733364234597,1.07044819,226.53,226.36,20.0]
[1733364236328,34.16587674,226.51,226.36,20.0]
[1733364236503,1.07045799,226.5,226.36,20.0]
[1733364237420,1.07045699,226.49,226.36,20.0]
[1733364238617,1.0704542,226.48,226.36,20.0]
[1733364239625,1.07045427,226.51,226.36,20.0]
[1733364240720,1.07044817,226.5,226.36,20.0]
[1733364240927,1.07044761,226.53,226.37,20.0]
[1733364241236,1.07044761,226.53,226.39,20.0]
[1733364241531,14.16587674,226.5,226.39,20.0]
[1733364241736,1.07044761,226.53,226.25,11.0497]
[1733364241737,14.16587674,226.45,226.25,11.0497]
[1733364241939,1.07076667,226.44,226.25,11.0497]
[1733364242136,14.16587674,226.42,226.25,11.0497]
[1733364242298,1.07087866,226.41,226.25,11.0497]
[1733364242625,1.07079708,226.43,226.26,5.0]
[1733364242797,1.07079708,226.43,226.27,11.0487]
[1733364243005,15.23667382,226.43,226.25,1.99307083]
[1733364243199,15.23667382,226.43,226.25,20.0]
[1733364243734,1.07079708,226.43,226.29,20.0]
[1733364244029,14.7304186,226.6,226.26,16.0492]
[1733364244030,1.07066896,226.45,226.31,5.0]
[1733364244209,15.23634394,226.51,226.3,25.67498495]
[1733364244400,14.16587674,226.5,226.3,25.67498495]
[1733364244716,1.0704808,226.49,226.3,25.67498495]
[1733364245121,1.0704808,226.49,226.34,20.0]
[1733364245324,1.07033064,226.54,226.34,25.67498495]
[1733364245528,14.16587674,226.52,226.34,20.0]
[1733364245706,1.07044735,226.51,226.34,20.0]
[1733364247126,14.16587674,226.48,226.31,11.0467]
[1733364247322,1.07060027,226.47,226.31,11.0467]
[1733364248242,15.2364429,226.46,226.3,20.0]
[1733364248533,14.16587674,226.44,226.27,13.00998807]
[1733364248746,1.07077032,226.43,226.27,13.00998807]
[1733364249527,15.23664706,226.43,226.3,20.0]
[1733364249742,14.16587674,226.42,226.27,20.0]
[1733364249932,15.23679528,226.41,226.23,11.0504]
[1733364250114,1.07091854,226.41,226.23,11.0504]
[1733364250310,14.16587674,226.4,226.23,11.0504]
[1733364250524,14.16587674,226.4,226.21,5.67498495]
[1733364250525,14.16587674,226.37,226.21,5.67498495]
[1733364250740,14.16587674,226.35,226.19,11.0523]
[1733364250943,14.16587674,226.32,226.19,1.98686714]
[1733364251117,14.16587674,226.29,226.13,5.67498495]
[1733364251437,1.07146059,226.28,226.13,5.67498495]
[1733364251745,1.07146059,226.28,226.13,7.68268373]
[1733364252807,1.07140838,226.27,226.13,7.68268373]
[1733364253010,15.23728512,226.27,226.11,16.0562]
[1733364253239,14.16587674,226.25,226.07,11.0581]
[1733364253425,1.07173111,226.24,226.07,11.0581]
[1733364254242,1.07173111,226.24,226.08,10.0]
[1733364254443,1.07164626,226.26,226.1,20.0]
[1733364254632,15.23733386,226.23,226.07,12.97846214]
[1733364255134,1.07145712,226.23,226.07,12.97846214]
[1733364255642,136.3,226.33,226.07,12.97846214]
[1733364255643,1.07163857,226.25,226.07,18.65344709]
[1733364255868,1.07153966,226.27,226.08,15.67498495]
[1733364256254,1.07153966,226.27,226.1,5.0]
[1733364256572,1.07134838,226.31,226.11,25.67498495]
[1733364256940,15.23722512,226.31,226.15,20.0]
[1733364257145,1.07134838,226.31,226.15,20.0]
[1733364257862,1.07135351,226.3,226.15,20.0]
[1733364258764,1.07133337,226.29,226.15,20.0]
[1733364258954,22.68340112,226.31,226.15,20.0]
[1733364259151,22.68340112,226.29,226.15,20.0]
[1733364259339,1.07153425,226.28,226.15,20.0]
[1733364259731,23.75474238,226.31,226.15,20.0]
[1733364259937,1.07134126,226.31,226.19,5.0]
[1733364260169,22.68340112,226.43,226.22,20.0]
[1733364260345,22.68340112,226.49,226.24,20.0]
[1733364260346,1.07088992,226.42,226.24,20.0]
[1733364260539,1.07088992,226.42,226.24,25.91981829]
[1733364261039,1.07088992,226.42,226.28,20.0]
[1733364261570,22.68340112,226.39,226.25,20.0]
[1733364261741,22.68340112,226.37,226.18,20.0]
[1733364262077,1.07102061,226.36,226.21,20.0]
[1733364262967,22.68340112,226.34,226.21,20.0]
[1733364263140,1.0712074,226.33,226.17,12.97570696]
[1733364264046,10.0,226.44,226.17,12.97570696]
[1733364264047,1.07112215,226.35,226.17,12.97570696]
[1733364264268,1.07112215,226.35,226.17,23.89552525]
[1733364264441,1.07096414,226.39,226.21,20.0]
[1733364264636,1.07096414,226.39,226.21,25.91981829]
[1733364265042,1.07096414,226.39,226.22,5.91981829]
[1733364265267,1.07096414,226.39,226.25,20.0]
[1733364267469,1.07096414,226.39,226.25,25.91981829]
[1733364267671,1.07076821,226.42,226.29,20.0]
[1733364268371,1.07076821,226.42,226.28,20.0]
[1733364268372,23.75416933,226.42,226.28,20.0]
[1733364268969,22.68340112,226.4,226.28,20.0]
[1733364269156,1.07085982,226.39,226.28,20.0]
[1733364269359,1.07085982,226.39,226.27,8.2865]
[1733364269662,23.75426094,226.39,226.27,8.2865]
[1733364269861,22.68340112,226.37,226.27,8.2865]
[1733364270053,1.07098721,226.36,226.27,8.2865]
[1733364270250,23.75438833,226.36,226.27,8.2865]
[1733364270455,22.68340112,226.35,226.22,7.6624]
[1733364270657,1.07123837,226.34,226.22,7.6624]
[1733364271860,1.07104406,226.36,226.22,7.6624]
[1733364272156,23.75444518,226.36,226.22,7.6624]
[1733364272361,22.68340112,226.35,226.22,7.6624]
[1733364272665,1.07115682,226.34,226.22,7.6624]
[1733364273368,1.07112498,226.36,226.25,20.0]
[1733364274374,1.07098548,226.38,226.25,20.0]
[1733364275386,22.68340112,226.34,226.22,7.6624]
[1733364275572,1.07126648,226.33,226.22,7.6624]
[1733364275966,1.07104438,226.36,226.22,7.6624]
[1733364276684,1.07093735,226.39,226.26,20.0]
[1733364277203,1.07093735,226.39,226.27,1.5885]
[1733364277395,6.4512,226.46,226.27,1.5885]
[1733364277396,23.75418696,226.43,226.27,1.5885]
[1733364277978,15.23445408,226.43,226.27,1.5885]
[1733364278677,1.07078584,226.43,226.28,6.6328]
[1733364278851,1.07058831,226.45,226.31,20.0]
[1733364279257,1.07046699,226.48,226.32,1.5885]
[1733364279767,1.07046699,226.48,226.36,20.0]
[1733364281086,1.07037475,226.5,226.36,20.0]
[1733364281258,1.07037475,226.5,226.37,21.5883]
[1733364281458,1.07018812,226.54,226.37,21.5883]
[1733364281886,1.07018812,226.54,226.38,20.0]
[1733364282087,15.23385636,226.54,226.38,20.0]
[1733364282377,15.23385636,226.54,226.37,21.5883]
[1733364282583,14.16366824,226.52,226.37,21.5883]
[1733364282880,1.07020926,226.51,226.37,21.5883]
[1733364283684,1.07019075,226.53,226.37,21.5883]
[1733364283993,1.07019075,226.53,226.41,20.0]
[1733364285380,15.23385899,226.53,226.41,20.0]
[1733364286156,1.07019075,226.53,226.41,20.0]
[1733364286683,1.0700724,226.55,226.41,20.0]
[1733364288083,14.16366824,226.54,226.41,20.0]
[1733364288403,1.07017532,226.53,226.41,20.0]
[1733364289187,1.07013582,226.52,226.41,20.0]
[1733364289368,1.07013578,226.55,226.41,20.0]
[1733364289963,1.07013578,226.55,226.42,7.919]
[1733364290582,1.07000257,226.56,226.45,20.0]
[1733364290786,1.06985476,226.6,226.46,21.6604]
[1733364295098,15.233523,226.6,226.46,21.6604]
[1733364295300,14.16366824,226.59,226.46,21.6604]
[1733364295487,14.16366824,226.56,226.46,1.6604]
[1733364295675,1.07012513,226.55,226.46,1.6604]
[1733364295881,15.23379337,226.55,226.46,1.6604]
[1733364296578,1.07012513,226.55,226.46,1.6604]
[1733364297970,1.07002098,226.57,226.46,1.6604]
[1733364298385,15.23368922,226.57,226.46,1.6604]
[1733364298575,14.16366824,226.51,226.46,1.6604]
[1733364298781,1.07020354,226.5,226.46,1.6604]
[1733364299397,1.07015779,226.52,226.46,1.6604]
[1733364300901,1.07009755,226.55,226.46,1.6604]
[1733364301112,14.16366824,226.54,226.46,1.6604]
[1733364301310,15.23387668,226.53,226.46,1.6604]
[1733364301605,14.16366824,226.51,226.46,1.6604]
[1733364301783,14.16366824,226.49,226.42,6.2586]
[1733364301977,15.23414742,226.48,226.42,6.2586]
[1733364302390,1.07047918,226.48,226.42,6.2586]
[1733364302592,1.07047918,226.48,226.27,82.0]
[1733364302593,14.16366824,226.45,226.35,8.1399]
[1733364302807,15.23434459,226.44,226.35,8.1399]
[1733364303101,14.16366824,226.43,226.35,8.1399]
[1733364303274,14.16366824,226.41,226.35,8.1399]
[1733364303478,20.0,226.38,226.28,1.5327]
[1733364303675,15.23468957,226.37,226.28,1.5327]
[1733364303900,14.16366824,226.36,226.28,1.5327]
[1733364304106,5.0,226.43,226.28,1.5327]
[1733364304107,15.23482351,226.35,226.28,1.5327]
[1733364304289,14.16366824,226.31,226.27,6.6072]
[1733364304610,14.16366824,226.29,226.23,1.5327]
[1733364304814,1.0714058,226.28,226.23,1.5327]
[1733364304982,1.0712267,226.31,226.23,1.5327]
[1733364306004,1.07115263,226.33,226.23,1.5327]
[1733364306313,15.23482087,226.33,226.23,1.5327]
[1733364306615,1.07115263,226.33,226.23,1.5327]
[1733364307108,1.07118877,226.32,226.23,1.5327]
[1733364307309,14.16366824,226.3,226.23,1.5327]
[1733364307611,1.07137671,226.29,226.23,1.5327]
[1733364308378,14.16366824,226.32,226.23,1.5327]
[1733364308379,1.07134556,226.31,226.23,1.5327]
[1733364308917,21.07134556,226.31,226.23,1.5327]
[1733364309116,1.07115843,226.3,226.24,20.0]
[1733364309311,14.16366824,226.35,226.23,1.5327]
[1733364309484,1.0712277,226.34,226.23,1.5327]
[1733364310614,20.0,226.35,226.23,1.5327]
[1733364310915,1.07100783,226.34,226.23,1.5327]
[1733364312405,14.16366824,226.33,226.23,1.5327]
[1733364312727,25.0,226.41,226.23,1.5327]
[1733364312728,15.23493702,226.32,226.23,1.5327]
[1733364312888,14.16366824,226.3,226.23,1.5327]
[1733364313210,1.07137868,226.29,226.23,1.5327]
[1733364313982,1.07138035,226.28,226.23,1.5327]
[1733364314189,21.07127877,226.31,226.23,1.5327]
[1733364315891,14.16366824,226.3,226.23,1.5327]
[1733364316086,14.16366824,226.24,226.18,1.6513]
[1733364316314,14.16366824,226.22,226.16,6.127]
[1733364316486,1.07175139,226.21,226.16,6.127]
[1733364316690,15.23541963,226.21,226.16,6.127]
[1733364316908,1.07175139,226.21,226.16,6.127]
[1733364317502,1.07159894,226.24,226.16,6.127]
[1733364318187,20.0,226.26,226.16,6.127]
[1733364318393,1.07141133,226.25,226.16,6.127]
[1733364318823,20.0,226.27,226.16,6.127]
[1733364319125,1.07144877,226.26,226.16,6.127]
[1733364319790,1.07141316,226.28,226.16,6.127]
[1733364320697,14.16366824,226.32,226.16,6.127]
[1733364321003,1.07136334,226.31,226.16,6.127]
[1733364321210,15.23503158,226.31,226.16,6.127]
[1733364321794,14.16366824,226.29,226.16,6.127]
[1733364321990,1.07150349,226.28,226.16,6.127]
[1733364322415,14.16366824,226.25,226.16,6.127]
[1733364322620,1.07155829,226.24,226.16,6.127]
[1733364323327,1.07150606,226.31,226.16,6.127]
[1733364323530,1.07150606,226.31,226.19,20.0]
[1733364323738,15.2351743,226.31,226.17,1.5707]
[1733364324021,1.07150606,226.31,226.17,1.5707]
[1733364324432,1.07124787,226.3,226.19,20.0]
[1733364324609,1.07111174,226.35,226.21,20.0]
[1733364324816,1.07111174,226.35,226.23,1.5707]
[1733364325018,15.23458398,226.38,226.23,1.5707]
[1733364325926,14.16366824,226.36,226.23,1.5707]
[1733364326226,15.23476135,226.35,226.23,1.5707]
[1733364326424,14.16366824,226.34,226.23,1.5707]
[1733364326610,1.07117954,226.33,226.23,1.5707]
[1733364326808,14.16366824,226.32,226.23,1.5707]
[1733364327061,1.07129173,226.31,226.23,1.5707]
[1733364327911,1.07129982,226.3,226.23,1.5707]
[1733364328607,221.5,226.65,226.23,1.5707]
[1733364328608,1.07125244,226.32,226.23,1.5707]
[1733364329631,1.0711137,226.34,226.23,1.5707]
[1733364329799,1.07100354,226.37,226.23,1.5707]
[1733364330003,1.07100354,226.37,226.25,20.0]
[1733364330831,1.07091564,226.39,226.25,20.0]
[1733364331338,15.23458388,226.39,226.23,1.5707]
[1733364331529,14.16366824,226.35,226.23,1.5707]
[1733364331721,15.23481066,226.34,226.23,1.5707]
[1733364332134,1.07114242,226.34,226.23,1.5707]
[1733364332327,15.23481066,226.34,226.23,1.5707]
[1733364333317,14.16366824,226.33,226.23,1.5707]
[1733364333539,20.0,226.31,226.23,1.5707]
[1733364333843,1.07125582,226.3,226.23,1.5707]
[1733364335735,1.07128746,226.29,226.23,1.5707]
[1733364335916,15.2349557,226.29,226.23,1.5707]
[1733364336116,14.16366824,226.27,226.22,6.3555]
[1733364336338,1.07154728,226.26,226.22,6.3555]
[1733364336851,20.0,226.29,226.22,6.3555]
[1733364337141,1.07129258,226.28,226.22,6.3555]
[1733364337347,1.07126728,226.33,226.22,6.3555]
[1733364339853,1.07109451,226.36,226.22,6.3555]
[1733364340351,15.23476275,226.36,226.22,6.3555]
[1733364340845,14.16366824,226.34,226.22,6.3555]
[1733364341039,20.0,226.31,226.22,6.3555]
[1733364341341,1.07125512,226.3,226.22,6.3555]
[1733364341845,1.07121477,226.34,226.22,6.3555]
[1733364344029,1.07121477,226.34,226.23,1.6114]
[1733364344221,20.0,226.37,226.23,1.6114]
[1733364344423,1.07094735,226.36,226.23,1.6114]
[1733364344653,20.0,226.34,226.23,1.6114]
[1733364344819,1.07117669,226.33,226.23,1.6114]
[1733364345353,0.9165284,226.33,226.23,1.6114]
[1733364345522,1.10210896,226.35,226.23,1.6114]
[1733364345944,1.10191463,226.38,226.23,1.6114]
[1733364346125,1.10191463,226.38,226.25,20.0]
[1733364346332,1.10191463,226.38,226.27,20.0]
[1733364346552,1.10171472,226.42,226.28,7.9091]
[1733364347639,1.10169869,226.41,226.28,7.9091]
[1733364348459,1.10169869,226.41,226.29,11.0477]
[1733364348637,1.10159832,226.45,226.29,11.0477]
[1733364349331,1.10159832,226.45,226.33,6.0279]
[1733364349527,15.26509884,226.48,226.34,1.5203]
[1733364349745,14.16366824,226.47,226.34,1.5203]
[1733364349939,1.1014916,226.46,226.34,1.5203]
[1733364350940,1.10148812,226.48,226.34,1.5203]
[1733364352156,20.0,226.47,226.34,1.5203]
[1733364352361,1.10138618,226.46,226.34,1.5203]
[1733364353661,1.10134385,226.47,226.34,1.5203]
[1733364358560,1.10135926,226.49,226.38,1.528]
[1733364358761,1.10115397,226.52,226.38,7.07479051]
[1733364359335,1.10115397,226.52,226.38,1.528]
[1733364359548,14.16366824,226.51,226.38,1.528]
[1733364359857,1.10130505,226.5,226.38,1.528]
[1733364360059,15.26497329,226.5,226.38,1.528]
[1733364361749,14.16366824,226.48,226.38,1.528]
[1733364361952,14.16366824,226.46,226.38,1.528]
[1733364362253,20.0,226.42,226.38,1.528]
[1733364362439,15.26542158,226.41,226.32,7.9211]
[1733364362641,14.16366824,226.39,226.32,7.9211]
[1733364362849,15.26563571,226.38,226.32,7.9211]
[1733364363170,21.10196747,226.38,226.32,7.9211]
[1733364363459,1.10196747,226.38,226.32,7.9211]
[1733364363766,14.16366824,226.46,226.32,7.9211]
[1733364364057,1.10154438,226.45,226.35,20.0]
[1733364364259,1.10137441,226.49,226.36,1.5525]
[1733364364470,1.10137441,226.49,226.37,6.5911]
[1733364364833,1.10119632,226.53,226.37,6.5911]
[1733364365251,15.26486456,226.53,226.37,6.5911]
[1733364365967,14.16366824,226.52,226.37,6.5911]
[1733364366163,20.0,226.5,226.37,6.5911]
[1733364366369,1.10134143,226.49,226.37,6.5911]
[1733364367073,6.5242,226.59,226.37,6.5911]
[1733364367074,1.10118373,226.53,226.37,6.5911]
[1733364367867,1.10118373,226.53,226.38,1.5667]
[1733364368375,20.0,226.52,226.38,1.5667]
[1733364368550,1.10110766,226.51,226.38,1.5667]
[1733364368863,1.10110766,226.51,226.38,7.11349051]
[1733364369662,1.10110766,226.51,226.38,1.5667]
[1733364370067,1.10122048,226.53,226.38,1.5667]
[1733364370571,20.0,226.5,226.38,1.5667]
[1733364370757,1.10136525,226.49,226.38,1.5667]
[1733364371075,22.64506161,226.48,226.38,1.5667]
[1733364371258,1.10145297,226.47,226.38,1.5667]
[1733364371461,22.64506161,226.46,226.38,1.5667]
[1733364371661,1.10162651,226.45,226.38,1.5667]
[1733364371972,20.0,226.44,226.38,1.5667]
[1733364372180,22.64506161,226.41,226.33,1.5176]
[1733364372350,23.74694539,226.4,226.33,1.5176]
[1733364372759,22.64506161,226.39,226.33,1.5176]
[1733364372969,1.101943,226.38,226.33,1.5176]
[1733364373179,21.101943,226.38,226.33,1.5176]
[1733364373363,21.10177097,226.41,226.33,1.5176]
[1733364373553,1.10177097,226.41,226.33,1.5176]
[1733364373877,1.10159683,226.44,226.33,21.5176]
[1733364374057,1.10151473,226.47,226.34,6.5094]
[1733364374263,22.64506161,226.51,226.34,6.5094]
[1733364374264,1.10134364,226.5,226.34,12.05619051]
[1733364374462,1.10134364,226.5,226.35,1.5176]
[1733364374960,1.10134364,226.5,226.35,7.06439051]
[1733364375879,20.0,226.49,226.35,7.06439051]
[1733364376088,1.10134336,226.48,226.35,7.06439051]
[1733364376678,1.10134336,226.48,226.35,1.5176]
[1733364376881,21.10134336,226.48,226.35,1.5176]
[1733364377776,1.10134336,226.48,226.35,1.5176]
[1733364378181,1.10134987,226.47,226.35,1.5176]
[1733364378368,1.10131573,226.49,226.36,7.8776]
[1733364378573,1.10124215,226.53,226.41,6.2461]
[1733364379364,23.74630376,226.53,226.41,6.2461]
[1733364379883,20.0,226.52,226.41,6.2461]
[1733364380076,1.10124215,226.53,226.41,6.2461]
[1733364380077,1.10113821,226.51,226.41,6.2461]
[1733364380281,20.0,226.51,226.41,6.2461]
[1733364380585,1.10120646,226.5,226.41,6.2461]
[1733364381088,20.0,226.45,226.41,6.2461]
[1733364381384,20.0,226.45,226.4,1.6562]
[1733364381385,23.74667172,226.44,226.4,1.6562]
[1733364381756,23.74667172,226.44,226.36,6.6473]